[Event "Titled Tuesday Blitz January 03 Early 2023"]
[White "Kalajzic, Ivan"]
[Black "Mekhitarian, Krikor Sevag"]
[WhiteFideId "14506378"]
[BlackFideId "2107660"]
[WhiteElo "2062"]
[BlackElo "2537"]
[Result "0-1"]
[Round "01"]
[TimeControl "180+2"]
[Date "2023.01.03"]
[WhiteClock "0:00:07"]
[BlackClock "0:00:13"]

1. b3 {[%clk 0:02:58]}  b6 {[%clk 0:02:57]} 2. Bb2 {[%clk 0:02:53]}  Bb7 {[%clk 0:02:57]} 3. e3 {[%clk 0:02:52]}  e6 {[%clk 0:02:58]} 4. Nf3 {[%clk 0:02:52]}  Nf6 {[%clk 0:02:52]} 5. c4 {[%clk 0:02:48]}  d5 {[%clk 0:02:50]} 6. Nc3 {[%clk 0:02:45]}  a6 {[%clk 0:02:50]} 7. Be2 {[%clk 0:02:45]}  Bd6 {[%clk 0:02:49]} 8. O-O {[%clk 0:02:45]}  O-O {[%clk 0:02:49]} 9. cxd5 {[%clk 0:02:45]}  exd5 {[%clk 0:02:49]} 10. d4 {[%clk 0:02:44]}  Re8 {[%clk 0:02:49]} 11. Qc2 {[%clk 0:02:34]}  Nbd7 {[%clk 0:02:48]} 12. Rfd1 {[%clk 0:02:33]}  Qe7 {[%clk 0:02:48]} 13. Nd2 {[%clk 0:02:19]}  h5 {[%clk 0:02:46]} 14. Bf3 {[%clk 0:02:19]}  Qe6 {[%clk 0:02:24]} 15. a4 {[%clk 0:02:00]}  g5 {[%clk 0:02:19]} 16. Ba3 {[%clk 0:01:54]}  Bxa3 {[%clk 0:02:10]} 17. Rxa3 {[%clk 0:01:54]}  h4 {[%clk 0:02:11]} 18. h3 {[%clk 0:01:51]}  Kh8 {[%clk 0:02:03]} 19. Nf1 {[%clk 0:01:51]}  Ne4 {[%clk 0:01:55]} 20. Nh2 {[%clk 0:01:45]}  f5 {[%clk 0:01:53]} 21. Nxe4 {[%clk 0:01:42]}  dxe4 {[%clk 0:01:53]} 22. Be2 {[%clk 0:01:43]}  Rac8 {[%clk 0:01:48]} 23. b4 {[%clk 0:01:40]}  Qd6 {[%clk 0:01:44]} 24. Rc3 {[%clk 0:01:37]}  Nf6 {[%clk 0:01:34]} 25. Rc1 {[%clk 0:01:34]}  Nd5 {[%clk 0:01:32]} 26. Rb3 {[%clk 0:01:28]}  Nxb4 {[%clk 0:01:27]} 27. Qb2 {[%clk 0:01:17]}  a5 {[%clk 0:01:24]} 28. Nf1 {[%clk 0:00:59]}  Bd5 {[%clk 0:01:19]} 29. Bc4 {[%clk 0:00:57]}  Bc6 {[%clk 0:01:13]} 30. Bb5 {[%clk 0:00:56]}  Bxb5 {[%clk 0:01:13]} 31. axb5 {[%clk 0:00:56]}  Nd3 {[%clk 0:01:14]} 32. Qc3 {[%clk 0:00:51]}  Nxc1 {[%clk 0:01:13]} 33. Qxc1 {[%clk 0:00:52]}  c5 {[%clk 0:01:06]} 34. Rc3 {[%clk 0:00:43]}  Re7 {[%clk 0:00:30]} 35. Qd1 {[%clk 0:00:41]}  Kg7 {[%clk 0:00:27]} 36. Qh5 {[%clk 0:00:38]}  Qg6 {[%clk 0:00:26]} 37. Qd1 {[%clk 0:00:37]}  Qd6 {[%clk 0:00:22]} 38. Qh5 {[%clk 0:00:36]}  Qf6 {[%clk 0:00:22]} 39. Rc4 {[%clk 0:00:30]}  Rec7 {[%clk 0:00:21]} 40. Qd1 {[%clk 0:00:25]}  Rd7 {[%clk 0:00:17]} 41. Qc2 {[%clk 0:00:21]}  Rcd8 {[%clk 0:00:17]} 42. dxc5 {[%clk 0:00:20]}  bxc5 {[%clk 0:00:18]} 43. Rxc5 {[%clk 0:00:20]}  Rd1 {[%clk 0:00:19]} 44. Rc6 {[%clk 0:00:20]}  Qa1 {[%clk 0:00:14]} 45. Qc4 {[%clk 0:00:13]}  Rxf1+ {[%clk 0:00:12]} 46. Qxf1 {[%clk 0:00:09]}  Rd1 {[%clk 0:00:13]} 47. Rc7+ {[%clk 0:00:07]}  Kh6 {[%clk 0:00:13]} 0-1


[Site "https://www.chess.com"]

[Event "Titled Tuesday Blitz January 03 Early 2023"]
[White "Kaasen, Tor Fredrik"]
[Black "Najdin, Danil"]
[WhiteFideId "1516647"]
[BlackFideId "4172426"]
[WhiteElo "2480"]
[BlackElo "2235"]
[Result "1-0"]
[Round "01"]
[TimeControl "180+2"]
[Date "2023.01.03"]
[WhiteClock "0:00:12"]
[BlackClock "0:00:02"]

1. Nf3 {[%clk 0:03:00]}  Nf6 {[%clk 0:02:58]} 2. c4 {[%clk 0:03:00]}  g6 {[%clk 0:02:57]} 3. g3 {[%clk 0:02:59]}  Bg7 {[%clk 0:02:57]} 4. Bg2 {[%clk 0:03:00]}  O-O {[%clk 0:02:58]} 5. O-O {[%clk 0:03:00]}  c5 {[%clk 0:02:58]} 6. d4 {[%clk 0:02:58]}  d6 {[%clk 0:02:58]} 7. Nc3 {[%clk 0:02:58]}  Nc6 {[%clk 0:02:57]} 8. d5 {[%clk 0:02:52]}  Na5 {[%clk 0:02:58]} 9. Nd2 {[%clk 0:02:53]}  a6 {[%clk 0:02:55]} 10. Rb1 {[%clk 0:02:50]}  Bd7 {[%clk 0:02:53]} 11. Qc2 {[%clk 0:02:44]}  b5 {[%clk 0:02:52]} 12. cxb5 {[%clk 0:02:43]}  axb5 {[%clk 0:02:46]} 13. b4 {[%clk 0:02:44]}  cxb4 {[%clk 0:02:34]} 14. Rxb4 {[%clk 0:02:44]}  Qc7 {[%clk 0:02:31]} 15. Bb2 {[%clk 0:02:42]}  Rfc8 {[%clk 0:02:06]} 16. Rc1 {[%clk 0:02:26]}  Qc5 {[%clk 0:01:33]} 17. a3 {[%clk 0:02:22]}  Bf5 {[%clk 0:01:22]} 18. Qd1 {[%clk 0:02:14]}  Nc4 {[%clk 0:01:11]} 19. Nxc4 {[%clk 0:02:07]}  bxc4 {[%clk 0:01:11]} 20. Na4 {[%clk 0:02:07]}  Rxa4 {[%clk 0:01:02]} 21. Rxa4 {[%clk 0:02:07]}  Ng4 {[%clk 0:01:01]} 22. Bxg7 {[%clk 0:01:43]}  Qxf2+ {[%clk 0:00:33]} 23. Kh1 {[%clk 0:01:43]}  Kxg7 {[%clk 0:00:22]} 24. Qg1 {[%clk 0:01:33]}  Qxe2 {[%clk 0:00:22]} 25. h3 {[%clk 0:01:09]}  Nf2+ {[%clk 0:00:19]} 26. Kh2 {[%clk 0:01:09]}  Nxh3 {[%clk 0:00:19]} 27. Qd4+ {[%clk 0:01:00]}  f6 {[%clk 0:00:15]} 28. Qd1 {[%clk 0:00:51]}  Qa2 {[%clk 0:00:14]} 29. Ra7 {[%clk 0:00:49]}  Ng5 {[%clk 0:00:13]} 30. Rxe7+ {[%clk 0:00:46]}  Kf8 {[%clk 0:00:13]} 31. Qe2 {[%clk 0:00:47]}  Qxa3 {[%clk 0:00:07]} 32. Re1 {[%clk 0:00:46]}  Qa4 {[%clk 0:00:05]} 33. Rb7 {[%clk 0:00:36]}  Re8 {[%clk 0:00:04]} 34. Qf2 {[%clk 0:00:19]}  c3 {[%clk 0:00:01]} 35. Rxe8+ {[%clk 0:00:18]}  Kxe8 {[%clk 0:00:01]} 36. Qe3+ {[%clk 0:00:17]}  Be4 {[%clk 0:00:02]} 37. Qxc3 {[%clk 0:00:12]} 1-0


[Site "https://www.chess.com"]

[Event "Titled Tuesday Blitz January 03 Early 2023"]
[White "Vovk, Orest"]
[Black "Preotu, Razvan"]
[WhiteFideId "14113490"]
[BlackFideId "2613280"]
[WhiteElo "2315"]
[BlackElo "2475"]
[Result "0-1"]
[Round "01"]
[TimeControl "180+2"]
[Date "2023.01.03"]
[WhiteClock "0:00:01"]
[BlackClock "0:00:11"]

1. h4 {[%clk 0:02:56]}  e5 {[%clk 0:02:51]} 2. h5 {[%clk 0:02:56]}  d5 {[%clk 0:02:50]} 3. h6 {[%clk 0:02:56]}  Nxh6 {[%clk 0:02:50]} 4. d4 {[%clk 0:02:56]}  Ng4 {[%clk 0:02:44]} 5. f3 {[%clk 0:02:55]}  Nf6 {[%clk 0:02:31]} 6. dxe5 {[%clk 0:02:55]}  Ng8 {[%clk 0:02:31]} 7. e4 {[%clk 0:02:53]}  dxe4 {[%clk 0:02:22]} 8. Qxd8+ {[%clk 0:02:52]}  Kxd8 {[%clk 0:02:23]} 9. Nc3 {[%clk 0:02:43]}  Bb4 {[%clk 0:02:16]} 10. Bg5+ {[%clk 0:02:36]}  f6 {[%clk 0:02:06]} 11. O-O-O+ {[%clk 0:02:36]}  Bd7 {[%clk 0:01:52]} 12. Nxe4 {[%clk 0:02:21]}  fxg5 {[%clk 0:01:51]} 13. e6 {[%clk 0:02:21]}  Be7 {[%clk 0:01:34]} 14. Bc4 {[%clk 0:01:44]}  Ke8 {[%clk 0:01:17]} 15. exd7+ {[%clk 0:01:43]}  Nxd7 {[%clk 0:01:18]} 16. Bxg8 {[%clk 0:01:43]}  Rxg8 {[%clk 0:01:19]} 17. Rxh7 {[%clk 0:01:43]}  Nf6 {[%clk 0:01:14]} 18. Nxf6+ {[%clk 0:01:41]}  Bxf6 {[%clk 0:01:15]} 19. Ne2 {[%clk 0:01:35]}  Rd8 {[%clk 0:01:14]} 20. Rxd8+ {[%clk 0:01:34]}  Bxd8 {[%clk 0:01:13]} 21. Ng3 {[%clk 0:01:29]}  Kf7 {[%clk 0:01:13]} 22. Ne4 {[%clk 0:01:28]}  Kg6 {[%clk 0:01:11]} 23. Rh1 {[%clk 0:01:27]}  Be7 {[%clk 0:01:11]} 24. Rd1 {[%clk 0:01:20]}  Rd8 {[%clk 0:01:11]} 25. Rxd8 {[%clk 0:01:17]}  Bxd8 {[%clk 0:01:12]} 26. g4 {[%clk 0:01:15]}  Be7 {[%clk 0:01:11]} 27. Kd2 {[%clk 0:01:15]}  Kf7 {[%clk 0:01:10]} 28. Kd3 {[%clk 0:01:13]}  Ke6 {[%clk 0:01:11]} 29. Kd4 {[%clk 0:01:08]}  b6 {[%clk 0:01:05]} 30. Ng3 {[%clk 0:01:05]}  Bf6+ {[%clk 0:01:03]} 31. Ke4 {[%clk 0:01:04]}  Bxb2 {[%clk 0:01:04]} 32. Nf5 {[%clk 0:01:01]}  g6 {[%clk 0:00:58]} 33. Ne3 {[%clk 0:00:58]}  Be5 {[%clk 0:00:55]} 34. Nd5 {[%clk 0:00:54]}  Bd6 {[%clk 0:00:49]} 35. c4 {[%clk 0:00:48]}  c6 {[%clk 0:00:49]} 36. Ne3 {[%clk 0:00:42]}  Bc5 {[%clk 0:00:46]} 37. Nd1 {[%clk 0:00:39]}  Kd6 {[%clk 0:00:43]} 38. Nc3 {[%clk 0:00:35]}  Bb4 {[%clk 0:00:34]} 39. Ne2 {[%clk 0:00:34]}  b5 {[%clk 0:00:23]} 40. cxb5 {[%clk 0:00:33]}  cxb5 {[%clk 0:00:23]} 41. Nd4 {[%clk 0:00:34]}  a6 {[%clk 0:00:24]} 42. Nc2 {[%clk 0:00:32]}  Bc5 {[%clk 0:00:24]} 43. Ne1 {[%clk 0:00:29]}  b4 {[%clk 0:00:24]} 44. Kd3 {[%clk 0:00:27]}  Ke5 {[%clk 0:00:23]} 45. Kc4 {[%clk 0:00:27]}  Be7 {[%clk 0:00:23]} 46. Nd3+ {[%clk 0:00:27]}  Ke6 {[%clk 0:00:23]} 47. Nxb4 {[%clk 0:00:18]}  Bxb4 {[%clk 0:00:21]} 48. Kxb4 {[%clk 0:00:19]}  Ke5 {[%clk 0:00:21]} 49. Ka5 {[%clk 0:00:20]}  Kf4 {[%clk 0:00:22]} 50. Kxa6 {[%clk 0:00:20]}  Kxf3 {[%clk 0:00:22]} 51. a4 {[%clk 0:00:21]}  Kxg4 {[%clk 0:00:23]} 52. a5 {[%clk 0:00:22]}  Kf5 {[%clk 0:00:17]} 53. Kb7 {[%clk 0:00:19]}  g4 {[%clk 0:00:18]} 54. a6 {[%clk 0:00:20]}  g3 {[%clk 0:00:19]} 55. a7 {[%clk 0:00:21]}  g2 {[%clk 0:00:20]} 56. a8=Q {[%clk 0:00:21]}  g1=Q {[%clk 0:00:21]} 57. Qf8+ {[%clk 0:00:19]}  Kg4 {[%clk 0:00:19]} 58. Qc8+ {[%clk 0:00:14]}  Kg3 {[%clk 0:00:18]} 59. Qc3+ {[%clk 0:00:12]}  Kh2 {[%clk 0:00:15]} 60. Qe5+ {[%clk 0:00:10]}  Qg3 {[%clk 0:00:15]} 61. Qf6 {[%clk 0:00:06]}  g5 {[%clk 0:00:13]} 62. Kc6 {[%clk 0:00:06]}  Qf4 {[%clk 0:00:13]} 63. Qh6+ {[%clk 0:00:05]}  Kg2 {[%clk 0:00:13]} 64. Kd5 {[%clk 0:00:04]}  Qf5+ {[%clk 0:00:12]} 65. Kd4 {[%clk 0:00:04]}  g4 {[%clk 0:00:13]} 66. Qh8 {[%clk 0:00:01]}  g3 {[%clk 0:00:13]} 67. Kc3 {[%clk 0:00:02]}  Kf2 {[%clk 0:00:12]} 68. Qb8 {[%clk 0:00:01]}  g2 {[%clk 0:00:12]} 69. Qb2+ {[%clk 0:00:01]}  Kg3 {[%clk 0:00:12]} 70. Qb1 {[%clk 0:00:02]}  Qc5+ {[%clk 0:00:11]} 71. Kd3 {[%clk 0:00:01]}  g1=Q {[%clk 0:00:12]} 72. Kd2 {[%clk 0:00:01]}  Qxb1 {[%clk 0:00:11]} 0-1


[Site "https://www.chess.com"]

[Event "Titled Tuesday Blitz January 03 Early 2023"]
[White "Begmuratov, Khumoyun"]
[Black "Degenbaev, Aziz"]
[WhiteFideId "14210207"]
[BlackFideId "13802640"]
[WhiteElo "2387"]
[BlackElo "2203"]
[Result "1-0"]
[Round "01"]
[TimeControl "180+2"]
[Date "2023.01.03"]
[WhiteClock "0:00:03"]
[BlackClock "0:00:01"]

1. e4 {[%clk 0:02:59]}  c5 {[%clk 0:02:59]} 2. Nc3 {[%clk 0:02:59]}  Nc6 {[%clk 0:02:58]} 3. Bb5 {[%clk 0:02:59]}  d6 {[%clk 0:02:53]} 4. Nf3 {[%clk 0:02:56]}  Nf6 {[%clk 0:02:50]} 5. d4 {[%clk 0:02:56]}  cxd4 {[%clk 0:02:49]} 6. Qxd4 {[%clk 0:02:56]}  Bd7 {[%clk 0:02:42]} 7. Bxc6 {[%clk 0:02:56]}  Bxc6 {[%clk 0:02:43]} 8. O-O {[%clk 0:02:55]}  g6 {[%clk 0:02:40]} 9. Bg5 {[%clk 0:02:36]}  Bg7 {[%clk 0:02:40]} 10. h3 {[%clk 0:02:30]}  O-O {[%clk 0:02:33]} 11. Qe3 {[%clk 0:02:24]}  a6 {[%clk 0:02:20]} 12. Rfe1 {[%clk 0:02:10]}  Re8 {[%clk 0:02:17]} 13. e5 {[%clk 0:02:04]}  Bxf3 {[%clk 0:01:52]} 14. Qxf3 {[%clk 0:01:38]}  dxe5 {[%clk 0:01:51]} 15. Rxe5 {[%clk 0:01:35]}  Qb6 {[%clk 0:01:40]} 16. Rb1 {[%clk 0:01:13]}  Rac8 {[%clk 0:01:23]} 17. Ree1 {[%clk 0:00:59]}  Qc6 {[%clk 0:01:11]} 18. Qxc6 {[%clk 0:00:47]}  Rxc6 {[%clk 0:01:12]} 19. Bxf6 {[%clk 0:00:39]}  Bxf6 {[%clk 0:01:12]} 20. Nd5 {[%clk 0:00:39]}  Kg7 {[%clk 0:01:11]} 21. c3 {[%clk 0:00:39]}  Rd6 {[%clk 0:01:05]} 22. Ne3 {[%clk 0:00:31]}  Red8 {[%clk 0:01:00]} 23. Kf1 {[%clk 0:00:30]}  e6 {[%clk 0:00:43]} 24. g3 {[%clk 0:00:20]}  h5 {[%clk 0:00:39]} 25. f4 {[%clk 0:00:20]}  Rd2 {[%clk 0:00:35]} 26. Re2 {[%clk 0:00:20]}  Be7 {[%clk 0:00:28]} 27. Ke1 {[%clk 0:00:19]}  R2d3 {[%clk 0:00:25]} 28. Nf1 {[%clk 0:00:15]}  Bc5 {[%clk 0:00:23]} 29. Re4 {[%clk 0:00:13]}  h4 {[%clk 0:00:19]} 30. Re5 {[%clk 0:00:08]}  hxg3 {[%clk 0:00:14]} 31. Rxc5 {[%clk 0:00:07]}  g2 {[%clk 0:00:10]} 32. Kf2 {[%clk 0:00:06]}  gxf1=Q+ {[%clk 0:00:10]} 33. Rxf1 {[%clk 0:00:06]}  Rxh3 {[%clk 0:00:09]} 34. Kg2 {[%clk 0:00:04]}  Rh4 {[%clk 0:00:07]} 35. Kg3 {[%clk 0:00:04]}  Rhh8 {[%clk 0:00:03]} 36. Rc7 {[%clk 0:00:04]}  Rb8 {[%clk 0:00:04]} 37. Rd1 {[%clk 0:00:04]}  Rhc8 {[%clk 0:00:04]} 38. Rcd7 {[%clk 0:00:04]}  b5 {[%clk 0:00:04]} 39. Kg4 {[%clk 0:00:04]}  a5 {[%clk 0:00:04]} 40. a3 {[%clk 0:00:04]}  b4 {[%clk 0:00:04]} 41. cxb4 {[%clk 0:00:04]}  axb4 {[%clk 0:00:05]} 42. a4 {[%clk 0:00:05]}  b3 {[%clk 0:00:04]} 43. Ra7 {[%clk 0:00:05]}  Rf8 {[%clk 0:00:02]} 44. Rdd7 {[%clk 0:00:05]}  Rb4 {[%clk 0:00:02]} 45. a5 {[%clk 0:00:05]}  e5 {[%clk 0:00:02]} 46. a6 {[%clk 0:00:04]}  Rxf4+ {[%clk 0:00:02]} 47. Kg3 {[%clk 0:00:05]}  Ra4 {[%clk 0:00:02]} 48. Rd6 {[%clk 0:00:03]}  Rb8 {[%clk 0:00:01]} 49. Rc7 {[%clk 0:00:02]}  Ra8 {[%clk 0:00:01]} 50. Rdd7 {[%clk 0:00:03]} 1-0


[Site "https://www.chess.com"]

[Event "Titled Tuesday Blitz January 03 Early 2023"]
[White "Starozhilov, Leonid"]
[Black "Yirik, Volkan"]
[WhiteFideId "14106752"]
[BlackFideId "6300782"]
[WhiteElo "2313"]
[BlackElo "1957"]
[Result "1-0"]
[Round "01"]
[TimeControl "180+2"]
[Date "2023.01.03"]
[WhiteClock "0:00:41"]
[BlackClock "0:02:12"]

1. e4 {[%clk 0:02:46]}  g6 {[%clk 0:02:58]} 2. d4 {[%clk 0:02:46]}  Bg7 {[%clk 0:02:59]} 3. c4 {[%clk 0:02:45]}  d6 {[%clk 0:02:59]} 4. Nc3 {[%clk 0:02:45]}  Nf6 {[%clk 0:02:59]} 5. f3 {[%clk 0:02:43]}  O-O {[%clk 0:02:59]} 6. Be3 {[%clk 0:02:43]}  Nbd7 {[%clk 0:03:00]} 7. Nge2 {[%clk 0:02:42]}  a6 {[%clk 0:03:01]} 8. a4 {[%clk 0:02:33]}  c5 {[%clk 0:03:01]} 9. d5 {[%clk 0:02:33]}  Rb8 {[%clk 0:02:59]} 10. Ng3 {[%clk 0:02:32]}  Ne5 {[%clk 0:02:59]} 11. Qd2 {[%clk 0:02:31]}  e6 {[%clk 0:02:59]} 12. h4 {[%clk 0:02:29]}  exd5 {[%clk 0:02:59]} 13. cxd5 {[%clk 0:02:29]}  h5 {[%clk 0:02:59]} 14. Bg5 {[%clk 0:02:28]}  b5 {[%clk 0:02:59]} 15. axb5 {[%clk 0:02:27]}  axb5 {[%clk 0:02:59]} 16. Bxb5 {[%clk 0:02:25]}  Bd7 {[%clk 0:03:00]} 17. Be2 {[%clk 0:02:02]}  Qb6 {[%clk 0:02:57]} 18. Ra2 {[%clk 0:01:51]}  Qb3 {[%clk 0:02:55]} 19. O-O {[%clk 0:01:48]}  Nc4 {[%clk 0:02:51]} 20. Bxc4 {[%clk 0:01:42]}  Qxc4 {[%clk 0:02:51]} 21. Ra7 {[%clk 0:01:41]}  Bb5 {[%clk 0:02:47]} 22. Qf4 {[%clk 0:01:22]}  Ne8 {[%clk 0:02:29]} 23. Be7 {[%clk 0:01:10]}  Be5 {[%clk 0:02:29]} 24. Qh6 {[%clk 0:00:53]}  Ng7 {[%clk 0:02:23]} 25. Bxf8 {[%clk 0:00:44]}  Rxf8 {[%clk 0:02:23]} 26. Nge2 {[%clk 0:00:43]}  Qb3 {[%clk 0:02:12]} 27. Rb7 {[%clk 0:00:41]} 1-0


[Site "https://www.chess.com"]

[Event "Titled Tuesday Blitz January 03 Early 2023"]
[White "Silva, Caio Henrique Angelico"]
[Black "Ordekalog"]
[WhiteFideId "22777210"]
[WhiteElo "2129"]
[BlackElo "2701"]
[Result "1/2-1/2"]
[Round "01"]
[TimeControl "180+2"]
[Date "2023.01.03"]
[WhiteClock "0:00:43"]
[BlackClock "0:01:40"]

1. Nf3 {[%clk 0:03:00]}  d5 {[%clk 0:02:59]} 2. g3 {[%clk 0:03:00]}  c5 {[%clk 0:02:58]} 3. Bg2 {[%clk 0:02:59]}  Nc6 {[%clk 0:02:58]} 4. d4 {[%clk 0:02:59]}  Nf6 {[%clk 0:02:57]} 5. O-O {[%clk 0:02:59]}  cxd4 {[%clk 0:02:56]} 6. Nxd4 {[%clk 0:02:59]}  Na5 {[%clk 0:02:54]} 7. Nb3 {[%clk 0:02:48]}  e5 {[%clk 0:02:53]} 8. Bg5 {[%clk 0:02:46]}  Be6 {[%clk 0:02:52]} 9. Nc3 {[%clk 0:02:43]}  d4 {[%clk 0:02:50]} 10. Ne4 {[%clk 0:02:40]}  Nxb3 {[%clk 0:02:45]} 11. axb3 {[%clk 0:02:26]}  Be7 {[%clk 0:02:44]} 12. Bxf6 {[%clk 0:02:26]}  gxf6 {[%clk 0:02:43]} 13. f4 {[%clk 0:02:13]}  f5 {[%clk 0:02:38]} 14. Ng5 {[%clk 0:02:04]}  Bxg5 {[%clk 0:02:36]} 15. fxg5 {[%clk 0:02:04]}  Qxg5 {[%clk 0:02:23]} 16. Bxb7 {[%clk 0:02:04]}  O-O {[%clk 0:02:20]} 17. Bxa8 {[%clk 0:01:59]}  Rxa8 {[%clk 0:02:15]} 18. Qc1 {[%clk 0:01:58]}  Qg4 {[%clk 0:02:13]} 19. Qd2 {[%clk 0:01:51]}  Rc8 {[%clk 0:02:11]} 20. Ra5 {[%clk 0:01:35]}  Qe4 {[%clk 0:02:06]} 21. Qg5+ {[%clk 0:01:16]}  Kf8 {[%clk 0:02:06]} 22. Rxa7 {[%clk 0:01:06]}  Bd5 {[%clk 0:01:46]} 23. Qe7+ {[%clk 0:01:01]}  Kg8 {[%clk 0:01:44]} 24. Qg5+ {[%clk 0:01:00]}  Kf8 {[%clk 0:01:43]} 25. Qe7+ {[%clk 0:00:42]}  Kg8 {[%clk 0:01:41]} 26. Qg5+ {[%clk 0:00:43]}  Kf8 {[%clk 0:01:40]} 1/2-1/2


[Site "https://www.chess.com"]

[Event "Titled Tuesday Blitz January 03 Early 2023"]
[White "Nouri, Alekhine"]
[Black "Sreyas Payyappat"]
[WhiteFideId "5216184"]
[BlackFideId "46674969"]
[WhiteElo "2257"]
[BlackElo "2076"]
[Result "1-0"]
[Round "01"]
[TimeControl "180+2"]
[Date "2023.01.03"]
[WhiteClock "0:01:19"]
[BlackClock "0:00:13"]

1. e4 {[%clk 0:03:00]}  c5 {[%clk 0:02:55]} 2. Nc3 {[%clk 0:02:59]}  d6 {[%clk 0:02:54]} 3. Nf3 {[%clk 0:02:39]}  Nf6 {[%clk 0:02:51]} 4. d4 {[%clk 0:02:38]}  cxd4 {[%clk 0:02:31]} 5. Qxd4 {[%clk 0:02:39]}  Nc6 {[%clk 0:02:29]} 6. Bb5 {[%clk 0:02:39]}  Bd7 {[%clk 0:02:23]} 7. Bxc6 {[%clk 0:02:38]}  Bxc6 {[%clk 0:02:23]} 8. Bg5 {[%clk 0:02:39]}  h6 {[%clk 0:02:11]} 9. Bh4 {[%clk 0:02:37]}  g5 {[%clk 0:02:09]} 10. Bg3 {[%clk 0:02:37]}  Bg7 {[%clk 0:02:10]} 11. O-O-O {[%clk 0:02:32]}  O-O {[%clk 0:02:09]} 12. Qd3 {[%clk 0:02:26]}  Nd7 {[%clk 0:02:06]} 13. Nd4 {[%clk 0:02:14]}  Nc5 {[%clk 0:02:02]} 14. Qe3 {[%clk 0:02:13]}  Qb6 {[%clk 0:01:57]} 15. Nf5 {[%clk 0:02:11]}  a5 {[%clk 0:01:35]} 16. Nxe7+ {[%clk 0:02:09]}  Kh8 {[%clk 0:01:24]} 17. Rxd6 {[%clk 0:02:07]}  a4 {[%clk 0:01:17]} 18. Nf5 {[%clk 0:02:03]}  a3 {[%clk 0:01:14]} 19. b3 {[%clk 0:02:02]}  Qb4 {[%clk 0:00:55]} 20. Nxg7 {[%clk 0:01:47]}  Kxg7 {[%clk 0:00:26]} 21. Rhd1 {[%clk 0:01:45]}  f6 {[%clk 0:00:20]} 22. e5 {[%clk 0:01:39]}  f5 {[%clk 0:00:20]} 23. f4 {[%clk 0:01:36]}  Rac8 {[%clk 0:00:18]} 24. fxg5 {[%clk 0:01:36]}  f4 {[%clk 0:00:16]} 25. gxh6+ {[%clk 0:01:36]}  Kh8 {[%clk 0:00:13]} 26. R1d4 {[%clk 0:01:19]} 1-0


[Site "https://www.chess.com"]

[Event "Titled Tuesday Blitz January 03 Early 2023"]
[White "Goryachkina, Aleksandra"]
[Black "Zilleruelo Irizarry, Diego"]
[WhiteFideId "4147103"]
[BlackFideId "3101460"]
[WhiteElo "2571"]
[BlackElo "2135"]
[Result "1-0"]
[Round "01"]
[TimeControl "180+2"]
[Date "2023.01.03"]
[WhiteClock "0:00:46"]
[BlackClock "0:00:01"]

1. e4 {[%clk 0:02:53]}  c6 {[%clk 0:02:58]} 2. d4 {[%clk 0:02:52]}  d5 {[%clk 0:02:59]} 3. e5 {[%clk 0:02:50]}  c5 {[%clk 0:02:59]} 4. dxc5 {[%clk 0:02:48]}  e6 {[%clk 0:02:59]} 5. Nf3 {[%clk 0:02:46]}  Bxc5 {[%clk 0:02:58]} 6. a3 {[%clk 0:02:46]}  Nc6 {[%clk 0:02:58]} 7. Bd3 {[%clk 0:02:45]}  Nge7 {[%clk 0:02:57]} 8. b4 {[%clk 0:02:39]}  Bb6 {[%clk 0:02:57]} 9. O-O {[%clk 0:02:36]}  Ng6 {[%clk 0:02:57]} 10. Bb2 {[%clk 0:02:34]}  O-O {[%clk 0:02:57]} 11. Re1 {[%clk 0:02:32]}  Bd7 {[%clk 0:02:52]} 12. c4 {[%clk 0:02:27]}  dxc4 {[%clk 0:02:50]} 13. Bxc4 {[%clk 0:02:27]}  Qe7 {[%clk 0:02:48]} 14. Nbd2 {[%clk 0:02:25]}  Rac8 {[%clk 0:02:42]} 15. Rc1 {[%clk 0:02:24]}  Rfd8 {[%clk 0:02:41]} 16. Qb3 {[%clk 0:02:23]}  Be8 {[%clk 0:02:37]} 17. Ne4 {[%clk 0:02:18]}  Bc7 {[%clk 0:01:59]} 18. Nc5 {[%clk 0:02:17]}  Bb6 {[%clk 0:01:52]} 19. Bf1 {[%clk 0:02:11]}  Bxc5 {[%clk 0:01:51]} 20. Rxc5 {[%clk 0:02:09]}  Nf4 {[%clk 0:01:46]} 21. Rec1 {[%clk 0:02:02]}  a6 {[%clk 0:01:35]} 22. Qe3 {[%clk 0:01:51]}  Nd5 {[%clk 0:01:32]} 23. Qe4 {[%clk 0:01:51]}  Nb6 {[%clk 0:01:22]} 24. Ba1 {[%clk 0:01:33]}  h6 {[%clk 0:01:21]} 25. h4 {[%clk 0:01:32]}  Na7 {[%clk 0:01:13]} 26. Bd3 {[%clk 0:01:28]}  g6 {[%clk 0:01:11]} 27. h5 {[%clk 0:01:27]}  Kg7 {[%clk 0:01:10]} 28. Nh4 {[%clk 0:01:12]}  Rxd3 {[%clk 0:01:03]} 29. Qxd3 {[%clk 0:01:08]}  Qxh4 {[%clk 0:01:03]} 30. hxg6 {[%clk 0:01:08]}  fxg6 {[%clk 0:01:03]} 31. Rc7+ {[%clk 0:01:07]}  Rxc7 {[%clk 0:01:04]} 32. Rxc7+ {[%clk 0:01:06]}  Bf7 {[%clk 0:00:57]} 33. Qf3 {[%clk 0:01:02]}  h5 {[%clk 0:00:12]} 34. Rxf7+ {[%clk 0:00:58]}  Kg8 {[%clk 0:00:07]} 35. Rf8+ {[%clk 0:00:55]}  Kh7 {[%clk 0:00:08]} 36. Qxb7+ {[%clk 0:00:50]}  Kh6 {[%clk 0:00:07]} 37. Qxb6 {[%clk 0:00:50]}  Nb5 {[%clk 0:00:02]} 38. Qe3+ {[%clk 0:00:49]}  Kh7 {[%clk 0:00:01]} 39. a4 {[%clk 0:00:46]} 1-0


[Site "https://www.chess.com"]